bitfinex/quotes_SOLUSD_20250625
["timestamp","ask_amount","ask_price","bid_price","bid_amount"]
[1750835506470,10.36437015,146.24,146.2,6.83994528]
[1750835506642,15.46080912,146.24,146.2,6.83994528]
[1750835506841,10.36437015,146.24,146.2,6.83994528]
[1750835507043,15.46080912,146.24,146.2,6.83994528]
[1750835507241,10.36437015,146.24,146.2,6.83994528]
[1750835507445,15.46080912,146.24,146.2,6.83994528]
[1750835507643,10.36437015,146.24,146.2,6.83994528]
[1750835507851,15.46080912,146.24,146.2,6.83994528]
[1750835508064,3.52610988,146.24,146.2,6.83994528]
[1750835508864,5.09643897,146.25,146.2,6.83994528]
[1750835509056,5.09643897,146.26,146.22,5.05430988]
[1750835509943,8.62254885,146.27,146.22,5.05430988]
[1750835510146,15.45935585,146.27,146.22,11.8930027]
[1750835510459,3.52610988,146.24,146.18,43.15975818]
[1750835510664,3.52610988,146.24,146.19,3.52610988]
[1750835510867,3.52610988,146.24,146.19,10.36652304]
[1750835511254,5.09643897,146.25,146.19,10.36652304]
[1750835511459,3.52610988,146.24,146.19,10.36652304]
[1750835511859,3.52610988,146.25,146.2,3.52610988]
[1750835512171,15.46017377,146.25,146.2,10.36561204]
[1750835512372,10.3637348,146.25,146.2,10.36561204]
[1750835512574,15.46017377,146.25,146.2,10.36561204]
[1750835512771,10.3637348,146.25,146.2,10.36561204]
[1750835512971,15.46017377,146.25,146.2,10.36561204]
[1750835513272,15.45987984,146.26,146.21,3.52610988]
[1750835513465,10.36344087,146.26,146.21,3.52610988]
[1750835513671,15.45987984,146.26,146.21,3.52610988]
[1750835513847,10.36344087,146.26,146.21,3.52610988]
[1750835514049,10.36344087,146.26,146.21,10.36514667]
[1750835515169,3.52610988,146.26,146.21,10.36514667]
[1750835515373,3.52610988,146.26,146.22,3.52610988]
[1750835515963,11.93322704,146.27,146.22,3.52610988]
[1750835516158,3.52610988,146.26,146.22,10.36477725]
[1750835519196,3.52610988,146.27,146.22,10.36477725]
[1750835519392,3.52610988,146.27,146.23,5.14380988]
[1750835519592,3.52610988,146.28,146.23,5.14380988]
[1750835520487,3.52610988,146.26,146.23,1.6177]
[1750835520692,3.52610988,146.26,146.22,6.83866737]
[1750835520872,3.52610988,146.26,146.22,10.36477725]
[1750835521501,32.83697236,146.27,146.22,10.36477725]
[1750835521701,3.52610988,146.26,146.22,10.36477725]
[1750835521886,32.83697236,146.27,146.22,10.36477725]
[1750835522085,6.83526999,146.3,146.24,3.52610988]
[1750835522293,29.52610988,146.29,146.24,5.18480988]
[1750835523298,32.83497761,146.31,146.25,3.52610988]
[1750835523504,3.52610988,146.3,146.26,3.52610988]
[1750835523717,29.52610988,146.31,146.27,3.52610988]
[1750835524085,29.52610988,146.31,146.27,10.36261261]
[1750835524284,29.52610988,146.31,146.26,10.36304702]
[1750835524579,36.36101718,146.31,146.26,10.36304702]
[1750835526101,3.52610988,146.3,146.26,10.36304702]
[1750835526440,5.17367816,146.33,146.28,3.52610988]
[1750835526712,3.60167696,146.33,146.28,5.15020988]
[1750835526913,3.52610988,146.32,146.28,1.6241]
[1750835527614,10.36057583,146.32,146.28,1.6241]
[1750835528309,10.36057583,146.32,146.28,5.15020988]
[1750835528716,3.52610988,146.31,146.28,1.6241]
[1750835531313,10.36057583,146.32,146.28,1.6241]
[1750835532818,3.52610988,146.31,146.28,1.6241]
[1750835534713,10.36104505,146.31,146.28,1.6241]
[1750835538830,3.52610988,146.29,146.25,11.27520988]
[1750835539033,3.52610988,146.28,146.25,1.5062]
[1750835539347,3.52610988,146.26,146.24,5.88]
[1750835540615,3.52610988,146.25,146.21,8.45715765]
[1750835540813,6.83723428,146.26,146.21,1.6179]
[1750835540814,3.52610988,146.24,146.21,1.6179]
[1750835544261,5.51152523,146.24,146.21,1.6179]
[1750835546039,5.51152523,146.24,146.21,8.4573318]
[1750835547850,5.51152523,146.24,146.21,1.6179]
[1750835548046,5.51152523,146.24,146.2,6.83981182]
[1750835548930,5.51152523,146.23,146.2,6.83981182]
[1750835556057,5.51152523,146.23,146.19,18.23174353]
[1750835556261,5.51152523,146.22,146.19,12.7202183]
[1750835557385,6.83862247,146.23,146.18,6.84074934]
[1750835557386,5.51152523,146.21,146.18,6.84074934]
[1750835560002,5.51152523,146.21,146.17,8.42013464]
[1750835561297,6.8391226,146.22,146.17,8.42013464]
[1750835561502,5.51152523,146.21,146.17,13.93165987]
[1750835563112,5.51152523,146.21,146.17,6.84113464]
[1750835564018,12.35100959,146.21,146.17,6.84113464]
[1750835564206,10.36833882,146.21,146.17,6.84113464]
[1750835566816,3.52885446,146.21,146.17,6.84113464]
[1750835570919,3.52885446,146.21,146.17,10.3699891]
[1750835571320,10.3685418,146.21,146.16,34.26242553]
[1750835572039,3.52885446,146.2,146.16,34.26242553]
[1750835581127,3.52885446,146.2,146.16,30.73357107]
[1750835581431,3.52885446,146.2,146.16,34.26242553]
[1750835582737,3.52885446,146.19,146.16,23.89193805]
[1750835582927,6.83998203,146.2,146.16,23.89193805]
[1750835582928,3.52885446,146.17,146.16,23.89193805]
[1750835584124,3.52885446,146.18,146.16,23.89193805]
[1750835584322,3.52885446,146.19,146.16,23.89193805]
[1750835584831,3.52885446,146.19,146.16,30.73362496]
[1750835586840,3.52885446,146.18,146.16,23.89193805]
[1750835588128,3.52885446,146.17,146.16,23.89193805]
[1750835590947,10.36973966,146.18,146.16,23.89193805]
[1750835591548,3.52885446,146.18,146.16,23.89193805]
[1750835592229,3.52885446,146.17,146.16,23.89193805]
[1750835593027,10.37020357,146.17,146.16,23.89193805]
[1750835597952,3.52885446,146.17,146.16,23.89193805]
[1750835603547,3.52885446,146.21,146.16,27.42079251]
[1750835604540,8.63625336,146.22,146.17,3.52885446]
[1750835604729,26.0,146.21,146.17,3.52885446]
[1750835606053,26.0,146.21,146.18,6.8408811]
[1750835606557,10.62052625,146.23,146.19,5.51312735]
[1750835606729,10.62052625,146.24,146.19,5.51312735]
[1750835608029,10.62052625,146.24,146.2,6.83994528]
[1750835609230,10.62052625,146.24,146.2,12.35307263]
[1750835609426,5.51312735,146.24,146.2,12.35307263]
[1750835609652,10.62142054,146.24,146.2,12.35307263]
[1750835611072,5.51312735,146.24,146.2,12.35307263]
[1750835611438,5.10829319,146.25,146.21,5.51312735]
[1750835611652,5.51312735,146.25,146.21,5.51312735]
[1750835613469,5.51312735,146.25,146.21,12.35230538]
[1750835616265,12.35074327,146.25,146.21,12.35230538]
[1750835617362,5.51312735,146.24,146.21,6.83917803]
[1750835620265,5.51312735,146.24,146.2,5.51312735]
[1750835620771,5.51312735,146.23,146.19,6.84041316]
[1750835624177,5.10829319,146.26,146.19,29.45457341]
[1750835624467,146.2,146.29,146.24,5.51312735]
[1750835624773,5.51312735,146.25,146.21,5.51312735]
[1750835625977,5.51312735,146.25,146.21,12.35229488]
[1750835626178,6.83767458,146.25,146.21,6.83916753]
[1750835626483,5.51312735,146.28,146.23,5.51312735]
[1750835626661,5.51312735,146.28,146.24,5.51312735]
[1750835627868,5.51312735,146.28,146.24,12.35080412]
[1750835629457,31.51312735,146.3,146.25,5.51312735]
[1750835629661,31.51312735,146.3,146.26,5.51312735]
[1750835630652,31.51312735,146.3,146.26,12.34986466]
[1750835630844,26.0,146.3,146.26,12.34986466]
[1750835631049,31.51312735,146.3,146.26,12.34986466]
[1750835631244,31.51312735,146.3,146.26,6.83673731]
[1750835632563,31.51312735,146.3,146.26,12.34986466]
[1750835633081,26.0,146.3,146.26,12.34986466]
[1750835633246,31.51312735,146.3,146.26,12.34986466]
[1750835633874,31.51312735,146.3,146.24,6.83807439]
[1750835634171,31.51312735,146.3,146.25,5.51312735]
[1750835634483,31.51312735,146.3,146.24,6.83807439]
[1750835634484,5.51312735,146.28,146.24,6.83807439]
[1750835634854,5.51312735,146.28,146.23,13.88591137]
[1750835635058,5.51312735,146.27,146.23,8.37278402]
[1750835635377,5.51312735,146.26,146.23,6.83838402]
[1750835635751,5.51312735,146.26,146.22,12.35194098]
[1750835635946,5.51312735,146.25,146.22,6.83881363]
[1750835636480,5.51312735,146.24,146.21,12.69939885]
[1750835637054,5.51312735,146.25,146.21,12.69939885]
[1750835637970,5.51312735,146.25,146.21,18.2125262]
[1750835638272,5.51312735,146.26,146.21,18.2125262]
[1750835640850,12.35028428,146.26,146.21,18.2125262]
[1750835641068,5.51312735,146.25,146.21,18.2125262]
[1750835642252,12.35087542,146.25,146.21,12.69939885]
[1750835644377,5.51312735,146.25,146.21,12.69939885]
[1750835644579,5.51312735,146.25,146.21,18.2125262]
[1750835644960,5.51312735,146.26,146.21,18.2125262]
[1750835645161,5.51312735,146.25,146.21,18.2125262]
[1750835646285,5.51312735,146.25,146.21,12.69939885]
[1750835647890,5.51312735,146.25,146.21,18.2125262]
[1750835648073,5.51312735,146.26,146.21,18.2125262]
[1750835649282,5.51312735,146.26,146.22,5.51312735]
[1750835649476,10.61121203,146.27,146.22,5.51312735]
[1750835649677,36.61121203,146.28,146.23,5.51312735]
[1750835650077,31.09808468,146.28,146.25,5.51312735]
[1750835650284,5.10629762,146.29,146.26,5.51312735]
[1750835650599,5.51312735,146.3,146.26,12.34988487]
[1750835651190,5.51312735,146.29,146.26,6.83675752]
[1750835651368,5.51312735,146.28,146.23,17.09576892]
[1750835651569,5.51312735,146.28,146.24,5.51312735]
[1750835651992,37.94131993,146.31,146.25,5.51312735]
[1750835652199,5.51312735,146.3,146.25,5.51312735]
[1750835652375,5.51312735,146.3,146.26,6.83713934]
[1750835653092,5.51312735,146.29,146.26,6.83713934]
[1750835653286,5.51312735,146.29,146.25,6.83738031]
[1750835653890,5.51312735,146.29,146.25,12.35050766]
[1750835654489,12.34890003,146.29,146.25,12.35050766]
[1750835654694,12.34890003,146.29,146.24,5.51312735]
[1750835654884,5.51312735,146.28,146.24,5.51312735]
[1750835655197,5.51312735,146.29,146.24,5.51312735]
[1750835657688,5.51312735,146.29,146.25,6.83760683]
[1750835658067,5.51312735,146.3,146.26,5.51312735]
[1750835658472,31.51312735,146.31,146.26,5.51312735]
[1750835658773,36.61729093,146.31,146.27,5.51312735]
[1750835658987,31.51312735,146.31,146.27,5.51312735]
[1750835659385,5.51312735,146.29,146.25,12.35073418]
[1750835659890,5.51312735,146.28,146.25,6.83760683]
[1750835660083,5.51312735,146.29,146.25,6.83760683]
[1750835660389,5.51312735,146.29,146.25,12.35073418]
[1750835660976,5.51312735,146.29,146.23,23.9347542]
[1750835661178,5.51312735,146.29,146.25,5.51312735]
[1750835662006,5.51312735,146.29,146.25,12.35033093]
[1750835663995,31.51312735,146.31,146.27,5.51312735]
[1750835664202,26.0,146.31,146.28,5.51312735]
[1750835664421,5.51312735,146.32,146.28,5.51312735]
[1750835664713,26.0,146.33,146.28,5.51312735]
[1750835664873,31.51312735,146.33,146.29,5.51312735]
[1750835665076,26.0,146.33,146.3,5.51312735]
[1750835665404,10.61685191,146.34,146.3,5.51312735]
[1750835665578,5.51312735,146.34,146.3,5.51312735]
[1750835665773,11.62729164,146.35,146.3,5.51312735]
[1750835666005,5.51312735,146.34,146.31,6.83480281]
[1750835666998,5.51312735,146.34,146.3,12.34822598]
[1750835667186,5.51312735,146.34,146.3,6.83509863]
[1750835667586,18.46030317,146.35,146.3,6.83509863]
[1750835667791,5.51312735,146.34,146.3,6.83509863]
[1750835668499,5.51312735,146.34,146.3,12.34822598]
[1750835676004,53.03104983,146.36,146.31,5.51312735]
[1750835676199,51.71156061,146.36,146.32,5.51312735]
[1750835676593,51.71156061,146.36,146.3,6.83509863]
[1750835676908,51.71156061,146.36,146.32,5.51312735]
[1750835678596,51.71156061,146.36,146.33,6.83386865]
[1750835684089,5.51312735,146.35,146.32,6.83429688]
[1750835685408,51.71156061,146.36,146.32,6.83429688]
[1750835686516,5.51312735,146.34,146.3,5.51312735]
[1750835687510,5.51312735,146.35,146.31,6.83480281]
[1750835690006,5.51312735,146.34,146.3,12.34823179]
[1750835691816,6.83293721,146.35,146.3,12.34823179]
[1750835692126,5.51312735,146.34,146.3,12.34823179]
[1750835695514,5.51312735,146.31,146.27,5.86]
[1750835695917,6.83293474,146.35,146.27,5.86]
[1750835695918,5.51312735,146.3,146.27,5.86]
[1750835696124,5.51312735,146.28,146.24,5.51312735]
[1750835696325,3.52519881,146.28,146.24,3.52519881]
[1750835696910,3.52519881,146.29,146.24,3.52519881]
[1750835697111,3.52519881,146.29,146.25,6.83760683]
[1750835697610,3.52519881,146.29,146.25,10.36280564]
[1750835698347,5.50735071,146.29,146.25,12.34495754]
[1750835699071,5.50735071,146.29,146.24,6.83807439]
[1750835699214,5.50735071,146.29,146.25,5.50735071]
[1750835700136,5.50735071,146.29,146.26,6.83713934]
[1750835700305,5.50735071,146.31,146.26,12.34449005]
[1750835700512,5.10189911,146.32,146.29,5.50735071]
[1750835700729,12.34078781,146.34,146.29,5.50735071]
[1750835701038,5.50735071,146.33,146.29,5.50735071]
[1750835701840,5.50735071,146.33,146.29,12.34278525]
[1750835703349,12.34129655,146.33,146.29,6.83543454]
[1750835705849,5.50735071,146.33,146.29,6.83543454]
[1750835708148,5.50735071,146.32,146.29,6.83543454]
[1750835711730,5.10280748,146.34,146.29,12.34278525]
[1750835711932,5.50735071,146.33,146.29,12.34278525]
[1750835712143,10.61015819,146.34,146.29,12.34278525]
[1750835712534,5.50735071,146.33,146.29,12.34278525]
[1750835715153,5.10280748,146.34,146.29,12.34278525]
[1750835715353,10.61015819,146.34,146.3,5.50735071]
[1750835715652,36.61015819,146.35,146.3,5.50735071]
[1750835716139,31.50735071,146.35,146.3,5.50735071]
[1750835716336,38.34036429,146.35,146.3,5.50735071]
[1750835716547,5.50735071,146.34,146.3,5.50735071]
[1750835716848,5.50735071,146.34,146.31,6.83480281]
[1750835717948,10.61015819,146.34,146.31,6.83480281]
[1750835718150,5.50735071,146.34,146.31,6.83480281]
[1750835718541,10.61015819,146.34,146.31,6.83480281]
[1750835718744,5.50735071,146.34,146.31,6.83480281]
[1750835719733,10.6168029,146.34,146.31,6.83480281]
[1750835719934,5.50735071,146.34,146.31,6.83480281]
[1750835720354,10.6168029,146.34,146.31,6.83480281]
[1750835720555,5.50735071,146.34,146.31,6.83480281]
[1750835720739,5.50735071,146.34,146.3,5.50735071]
[1750835722252,29.52224408,146.35,146.3,3.52224408]
[1750835722650,29.52224408,146.35,146.31,3.52224408]
[1750835722839,29.52224408,146.35,146.31,10.35690614]
[1750835723554,3.52224408,146.34,146.31,6.83466206]
[1750835723753,8.63161305,146.34,146.31,6.83466206]
[1750835723944,3.52224408,146.34,146.31,6.83466206]
[1750835724353,5.50354016,146.34,146.31,6.83466206]
[1750835724555,36.61290913,146.35,146.31,6.83466206]
[1750835726045,31.10936897,146.35,146.31,6.83466206]
[1750835726251,31.50354016,146.35,146.31,6.83466206]
[1750835726563,36.61290913,146.35,146.31,6.83466206]
[1750835726861,31.50354016,146.35,146.31,6.83466206]
[1750835727169,5.50354016,146.34,146.31,6.83466206]
[1750835727647,10.61290913,146.34,146.31,6.83466206]
[1750835727847,5.50354016,146.34,146.31,6.83466206]
[1750835728550,10.61290913,146.34,146.31,6.83466206]
[1750835728762,5.50354016,146.36,146.32,5.50354016]
[1750835728948,10.61524419,146.36,146.32,5.50354016]
[1750835729462,10.61524419,146.36,146.31,13.96450222]
[1750835729866,5.50354016,146.35,146.31,13.96450222]
[1750835730375,5.50354016,146.35,146.31,8.46096206]
[1750835730960,5.50354016,146.35,146.31,6.83466206]
[1750835732471,5.50354016,146.35,146.31,5.50354016]
[1750835734271,5.50354016,146.35,146.32,6.8343357]
[1750835735374,10.61524419,146.36,146.32,6.8343357]
[1750835737650,5.50354016,146.35,146.32,6.8343357]
[1750835739073,11.94422428,146.36,146.32,6.8343357]
[1750835739276,10.61524419,146.36,146.32,12.33787586]
[1750835740269,5.50354016,146.35,146.28,35.73987393]
[1750835740469,5.50354016,146.35,146.3,5.50354016]
[1750835741274,12.33656524,146.35,146.3,12.33842151]
[1750835741776,5.50354016,146.34,146.3,6.83488135]
[1750835741979,5.50354016,146.34,146.3,12.33842151]
[1750835742166,5.50354016,146.34,146.3,6.83488135]
[1750835742368,5.50354016,146.34,146.3,12.33842151]
[1750835742572,10.61524419,146.34,146.3,12.33842151]
[1750835744273,8.63409908,146.34,146.3,3.52239505]
[1750835745159,5.11170403,146.33,146.3,3.52239505]
[1750835745872,8.63409908,146.34,146.3,10.3572128]
[1750835746749,5.11170403,146.33,146.3,10.3572128]
[1750835747771,5.11170403,146.36,146.32,5.07179505]
[1750835748081,5.11170403,146.36,146.34,3.52239505]
[1750835748378,5.11170403,146.38,146.34,3.52239505]
[1750835748676,5.11170403,146.38,146.36,3.52239505]
[1750835749285,0.07556708,146.39,146.36,3.52239505]
[1750835749461,5.18727111,146.39,146.36,3.52239505]
[1750835749965,5.18727111,146.39,146.35,6.83258668]
[1750835750171,31.18727111,146.39,146.35,10.35498173]
[1750835750481,31.18727111,146.39,146.35,12.33228083]
[1750835751667,26.07556708,146.39,146.35,12.33228083]
[1750835752072,31.18727111,146.39,146.35,12.33228083]
[1750835752269,26.07556708,146.39,146.35,12.33228083]
[1750835753674,31.18727111,146.39,146.35,12.33228083]
[1750835753863,0.07556708,146.39,146.37,5.49969415]
[1750835754661,0.07556708,146.39,146.38,5.49969415]
[1750835755886,0.07556708,146.39,146.38,12.33122851]
[1750835760600,0.07556708,146.39,146.38,30.98087737]
[1750835767690,0.07556708,146.39,146.38,36.48057152]
[1750835767875,1.531,146.5,146.42,18.64964886]
[1750835768081,5.49969415,146.49,146.45,5.49969415]
[1750835768289,5.49969415,146.48,146.44,5.49969415]
[1750835769290,5.49969415,146.48,146.45,6.82826903]
[1750835773510,34.35716412,146.5,146.45,6.82826903]
[1750835773673,5.49969415,146.49,146.45,6.82826903]
[1750835773993,5.49969415,146.48,146.45,6.82826903]
[1750835774393,3.51557722,146.48,146.45,6.82826903]
[1750835776179,3.51557722,146.48,146.42,22.10126669]
[1750835776180,3.51557722,146.47,146.43,6.82920166]
[1750835776399,3.51557722,146.44,146.41,5.86]
[1750835776696,3.51557722,146.42,146.38,6.83152096]
[1750835776875,3.51557722,146.4,146.38,6.83152096]
[1750835777285,3.51557722,146.4,146.37,6.83179506]
[1750835777493,3.51557722,146.39,146.37,6.83179506]
[1750835778293,5.49963127,146.39,146.37,6.83179506]
[1750835778687,5.49963127,146.39,146.36,12.79235275]
[1750835779196,5.49963127,146.37,146.33,6.83372478]
[1750835779390,5.49963127,146.35,146.32,6.83421373]
[1750835779588,8.38194355,146.39,146.32,6.83421373]
[1750835779895,5.49963127,146.36,146.32,6.83421373]
[1750835780094,5.49963127,146.36,146.32,12.333845]
[1750835781076,5.49963127,146.36,146.32,6.83421373]
[1750835783000,5.49963127,146.35,146.32,6.83421373]
[1750835783201,5.49963127,146.33,146.31,5.96]
[1750835783500,5.49963127,146.32,146.28,5.49963127]
[1750835783804,5.49963127,146.33,146.29,5.49963127]
[1750835784409,5.49963127,146.33,146.3,6.83526999]
[1750835786611,5.49963127,146.34,146.3,5.49963127]
[1750835786806,6.4424,146.36,146.28,23.92671587]
[1750835786992,5.49963127,146.35,146.31,5.49963127]
[1750835789023,5.49963127,146.35,146.3,5.49963127]
[1750835790004,5.49963127,146.35,146.31,5.49963127]
[1750835790914,5.49963127,146.35,146.32,6.8343357]
[1750835791597,5.49963127,146.36,146.32,6.8343357]
[1750835793310,5.49963127,146.36,146.32,5.49963127]
[1750835794515,5.49963127,146.36,146.33,6.83386865]
[1750835795019,60.71161156,146.38,146.31,6.83480281]
[1750835795020,5.49963127,146.35,146.31,6.83480281]
[1750835798918,5.49963127,146.35,146.3,5.49963127]
[1750835799811,5.49963127,146.34,146.3,5.49963127]
[1750835800923,5.49963127,146.34,146.31,6.83480281]
[1750835803126,5.49963127,146.36,146.32,5.49963127]
[1750835803914,53.88,146.38,146.31,12.33443408]
[1750835804224,5.49963127,146.36,146.31,12.33443408]
[1750835807024,31.49963127,146.38,146.33,5.49963127]
[1750835807208,5.49963127,146.38,146.34,5.49963127]
[1750835807801,7.05043127,146.39,146.34,5.49963127]
[1750835808016,7.05043127,146.39,146.35,5.49963127]
[1750835808216,5.49963127,146.39,146.35,5.49963127]
[1750835809724,5.49963127,146.39,146.33,6.83386865]
[1750835809929,5.49963127,146.39,146.35,5.49963127]
[1750835810412,5.49963127,146.39,146.34,5.49963127]
[1750835811652,5.49963127,146.39,146.35,6.83293474]
[1750835814131,5.49963127,146.38,146.35,6.83293474]
[1750835814730,5.49963127,146.37,146.3,18.65480157]
[1750835814904,5.49963127,146.36,146.32,5.49963127]
[1750835815314,5.49963127,146.35,146.31,6.83480281]
[1750835815522,5.49963127,146.33,146.31,6.83480281]
[1750835815829,5.49963127,146.33,146.3,6.83505493]
[1750835818230,6.1966,146.35,146.3,6.83505493]
[1750835818414,5.49963127,146.33,146.3,6.83505493]
[1750835822233,5.49963127,146.34,146.3,6.83505493]
[1750835822620,5.10022423,146.36,146.3,12.3346862]
[1750835822827,31.49963127,146.36,146.32,5.49963127]
[1750835823135,5.10022423,146.38,146.34,5.49963127]
[1750835823443,11.65953127,146.39,146.35,5.49963127]
[1750835823623,16.7597555,146.39,146.35,5.49963127]
[1750835823825,10.5998555,146.4,146.36,5.49963127]
[1750835824028,5.10022423,146.39,146.36,5.49963127]
[1750835824645,10.5998555,146.4,146.35,5.49963127]
[1750835824829,10.5998555,146.4,146.36,5.49963127]
[1750835825422,5.49963127,146.4,146.36,5.49963127]
[1750835825734,31.10022423,146.41,146.37,6.83200109]
[1750835825927,10.5998555,146.4,146.37,6.83200109]
[1750835826128,5.49963127,146.4,146.37,6.83200109]
[1750835827249,36.5998555,146.41,146.37,6.83200109]
[1750835827449,5.49963127,146.4,146.37,6.83200109]
[1750835831852,31.10022423,146.41,146.37,5.49963127]
[1750835832053,31.49963127,146.41,146.37,5.49963127]
[1750835832956,31.49963127,146.41,146.38,6.83153436]
[1750835834553,5.10022423,146.42,146.4,5.49963127]
[1750835834741,10.5998555,146.44,146.4,5.49963127]
[1750835834939,5.49963127,146.43,146.39,5.49963127]
[1750835835955,5.49963127,146.43,146.4,6.83060109]
[1750835836651,10.5998555,146.44,146.4,6.83060109]
[1750835837449,5.49963127,146.43,146.4,6.83060109]
[1750835840955,34.34853476,146.45,146.4,6.83060109]
[1750835840956,5.49963127,146.44,146.4,12.33023236]
[1750835841262,36.59525455,146.45,146.4,12.33023236]
[1750835843351,43.42352615,146.45,146.4,12.33023236]
[1750835843558,5.49963127,146.44,146.4,6.83060109]
[1750835843943,5.49963127,146.44,146.4,12.33023236]
[1750835846161,5.49963127,146.44,146.4,6.83060109]
[1750835848669,5.49963127,146.43,146.4,6.83060109]
[1750835851054,5.49963127,146.44,146.4,6.83060109]
[1750835854470,5.49963127,146.44,146.4,12.33023236]
[1750835854675,10.59525455,146.46,146.42,5.49963127]
[1750835854862,5.49963127,146.46,146.41,5.49963127]
[1750835855063,5.49963127,146.45,146.4,12.33023236]
[1750835858781,5.49963127,146.45,146.4,6.83060109]
[1750835858980,5.49963127,146.45,146.4,12.33023236]
[1750835861081,5.49963127,146.44,146.39,32.83083656]
[1750835861282,5.49963127,146.44,146.39,38.33046783]
[1750835861475,5.49963127,146.44,146.4,5.49963127]
[1750835862387,5.49963127,146.44,146.4,12.32998245]
[1750835862894,12.32810953,146.45,146.4,12.32998245]
[1750835865580,11.92363696,146.46,146.4,12.32998245]
[1750835865890,5.49963127,146.45,146.4,12.32998245]
[1750835867288,10.59525455,146.45,146.4,12.32998245]
[1750835868476,8.61294503,146.45,146.4,10.34767293]
[1750835869196,5.09562328,146.44,146.4,10.34767293]
[1750835869497,8.61294503,146.45,146.4,10.34767293]
[1750835869689,11.9239052,146.45,146.4,10.34767293]
[1750835869886,10.34560367,146.45,146.4,10.34767293]
[1750835870290,5.09562328,146.44,146.4,10.34767293]
[1750835870594,10.34560367,146.45,146.4,10.34767293]
[1750835870974,15.44122695,146.45,146.4,10.34767293]
[1750835871195,5.09562328,146.44,146.4,10.34767293]
[1750835871595,10.34560367,146.45,146.4,10.34767293]
[1750835872199,15.44122695,146.45,146.4,10.34767293]
[1750835872495,3.51732175,146.45,146.4,6.83035118]
[1750835872685,8.61294503,146.45,146.4,10.34767293]
[1750835873373,5.09562328,146.44,146.4,10.34767293]
[1750835876207,5.09562328,146.44,146.41,3.51732175]
[1750835876509,5.09562328,146.45,146.41,3.51732175]
[1750835876685,5.09562328,146.44,146.41,3.51732175]
[1750835877007,5.09562328,146.45,146.41,10.34701415]
[1750835877201,5.09562328,146.44,146.41,10.34701415]
[1750835877391,3.51732175,146.45,146.41,6.8296924]
[1750835877583,5.11405965,146.44,146.41,6.8296924]
[1750835877786,3.51732175,146.45,146.41,6.8296924]
[1750835877994,5.11405965,146.44,146.41,6.8296924]
[1750835878197,10.34570442,146.45,146.41,6.8296924]
[1750835878380,5.11521113,146.44,146.41,6.8296924]
[1750835878590,10.34570442,146.45,146.41,6.8296924]
[1750835878811,5.11521872,146.44,146.41,6.8296924]
[1750835879103,3.51732175,146.44,146.38,8.4893979]
[1750835879296,3.51732175,146.42,146.38,1.6579]
[1750835879496,8.63431591,146.41,146.38,1.6579]
[1750835879700,3.51732175,146.41,146.38,8.48938692]
[1750835879902,3.51732175,146.41,146.38,1.6579]
[1750835880711,26.0,146.42,146.38,12.00668583]
[1750835880898,42.68512629,146.45,146.4,3.51732175]
[1750835881213,5.11723831,146.44,146.4,3.51732175]
[1750835881401,5.11723831,146.43,146.4,10.34748555]
[1750835881733,29.51732175,146.45,146.4,10.34748555]
[1750835881913,5.11724695,146.44,146.41,3.51732175]
[1750835882121,5.11724695,146.43,146.41,3.51732175]
[1750835882290,26.0,146.45,146.41,3.51732175]
[1750835882486,5.117358,146.44,146.42,3.51732175]
[1750835883315,29.51732175,146.47,146.43,6.82920166]
[1750835883504,5.11605113,146.46,146.43,6.82920166]
[1750835883702,5.11605113,146.45,146.43,6.82920166]
[1750835884033,5.11571225,146.46,146.44,3.51732175]
[1750835884198,5.11571225,146.49,146.45,5.49172542]
[1750835884396,5.11571225,146.48,146.45,5.49172542]
[1750835884622,5.11571225,146.47,146.45,5.49172542]
[1750835884819,5.11571225,146.49,146.45,5.49172542]
[1750835885132,5.11571225,146.48,146.46,5.49172542]
[1750835885422,5.11571225,146.49,146.46,12.31952823]
[1750835885631,5.11571225,146.48,146.46,12.31952823]
[1750835885842,5.11571225,146.49,146.46,12.31952823]
[1750835886122,5.11090235,146.5,146.48,5.49172542]
[1750835886322,31.11090235,146.52,146.49,5.49172542]
[1750835886506,5.11090235,146.51,146.5,5.49172542]
[1750835886703,11.83114729,146.54,146.5,5.49172542]
[1750835886704,5.11090235,146.53,146.5,5.49172542]
[1750835887013,5.11090235,146.52,146.5,5.49172542]
[1750835887217,5.11090235,146.53,146.5,5.49172542]
[1750835887419,5.49172542,146.53,146.49,5.49172542]
[1750835887604,10.60262777,146.53,146.49,12.3179867]
[1750835887924,5.49172542,146.53,146.49,12.3179867]
[1750835890497,5.49172542,146.52,146.48,13.94771243]
[1750835890904,5.49172542,146.51,146.48,6.82668701]
[1750835891123,5.49172542,146.51,146.44,63.3510851]
[1750835891124,31.49172542,146.5,146.45,5.49172542]
[1750835892104,5.49172542,146.49,146.45,12.31999445]
[1750835892730,31.49172542,146.5,146.45,12.31999445]
[1750835893627,5.49172542,146.49,146.45,12.31999445]
[1750835894819,5.49172542,146.49,146.44,1.6297]
[1750835894820,5.49172542,146.47,146.44,1.6297]
[1750835895019,5.49172542,146.46,146.42,5.49172542]
[1750835895535,5.49172542,146.45,146.41,11.37172542]
[1750835896116,5.49172542,146.45,146.42,6.82966807]
[1750835896325,5.49172542,146.46,146.42,6.82966807]